[Event "Titled Tuesday Blitz July 4 Early 2023"]
[White "Vasques, Antonio Pedro Freixial"]
[Black "Parpiev, Isaak"]
[WhiteFideId "1908332"]
[BlackFideId "34281576"]
[WhiteElo "2309"]
[BlackElo "2553"]
[Result "1/2-1/2"]
[Round "3"]
[TimeControl "180+2"]
[Date "2023.07.04"]
[WhiteClock "0:00:11"]
[BlackClock "0:00:13"]
[Board "147"]

1. e4 {[%clk 0:02:58]}  d5 {[%clk 0:02:59]} 2. exd5 {[%clk 0:02:58]}  Qxd5 {[%clk 0:03:00]} 3. Nc3 {[%clk 0:02:58]}  Qe5+ {[%clk 0:03:00]} 4. Be2 {[%clk 0:02:56]}  Bg4 {[%clk 0:03:01]} 5. d4 {[%clk 0:02:51]}  Bxe2 {[%clk 0:03:01]} 6. Ngxe2 {[%clk 0:02:51]}  Qa5 {[%clk 0:03:02]} 7. O-O {[%clk 0:02:49]}  Nf6 {[%clk 0:03:02]} 8. b4 {[%clk 0:02:39]}  Qxb4 {[%clk 0:02:59]} 9. Rb1 {[%clk 0:02:39]}  Qd6 {[%clk 0:02:58]} 10. Rxb7 {[%clk 0:02:39]}  Qc6 {[%clk 0:02:53]} 11. Rb3 {[%clk 0:02:27]}  e6 {[%clk 0:02:53]} 12. Nf4 {[%clk 0:02:16]}  Bd6 {[%clk 0:02:29]} 13. d5 {[%clk 0:01:37]}  Qc4 {[%clk 0:02:27]} 14. Qf3 {[%clk 0:01:03]}  e5 {[%clk 0:02:22]} 15. Nd3 {[%clk 0:00:45]}  O-O {[%clk 0:02:21]} 16. Re1 {[%clk 0:00:42]}  Nbd7 {[%clk 0:02:21]} 17. Bg5 {[%clk 0:00:41]}  Rfe8 {[%clk 0:02:17]} 18. Nb2 {[%clk 0:00:34]}  Qa6 {[%clk 0:01:57]} 19. Bxf6 {[%clk 0:00:34]}  Nxf6 {[%clk 0:01:58]} 20. Nb5 {[%clk 0:00:33]}  e4 {[%clk 0:01:50]} 21. Qe2 {[%clk 0:00:30]}  Qxa2 {[%clk 0:01:47]} 22. Nxd6 {[%clk 0:00:27]}  cxd6 {[%clk 0:01:46]} 23. Nc4 {[%clk 0:00:28]}  Rad8 {[%clk 0:01:31]} 24. Ra3 {[%clk 0:00:27]}  Qxa3 {[%clk 0:01:26]} 25. Nxa3 {[%clk 0:00:27]}  Nxd5 {[%clk 0:01:26]} 26. Nb5 {[%clk 0:00:26]}  a6 {[%clk 0:01:23]} 27. Nd4 {[%clk 0:00:25]}  g6 {[%clk 0:01:23]} 28. Qxa6 {[%clk 0:00:24]}  Kg7 {[%clk 0:01:19]} 29. g3 {[%clk 0:00:24]}  Nf6 {[%clk 0:01:19]} 30. c4 {[%clk 0:00:20]}  Rc8 {[%clk 0:01:17]} 31. Nb5 {[%clk 0:00:20]}  Rcd8 {[%clk 0:00:56]} 32. Nxd6 {[%clk 0:00:19]}  Re6 {[%clk 0:00:56]} 33. c5 {[%clk 0:00:20]}  h5 {[%clk 0:00:56]} 34. Rd1 {[%clk 0:00:19]}  e3 {[%clk 0:00:55]} 35. fxe3 {[%clk 0:00:19]}  Rd7 {[%clk 0:00:47]} 36. Qc8 {[%clk 0:00:17]}  Rde7 {[%clk 0:00:44]} 37. c6 {[%clk 0:00:17]}  Rxe3 {[%clk 0:00:45]} 38. c7 {[%clk 0:00:18]}  Rc3 {[%clk 0:00:41]} 39. Nb5 {[%clk 0:00:18]}  Rc2 {[%clk 0:00:42]} 40. Qd8 {[%clk 0:00:18]}  Ree2 {[%clk 0:00:41]} 41. Qd4 {[%clk 0:00:17]}  Rg2+ {[%clk 0:00:38]} 42. Kf1 {[%clk 0:00:17]}  Rxh2 {[%clk 0:00:39]} 43. Kg1 {[%clk 0:00:12]}  Rcg2+ {[%clk 0:00:35]} 44. Kf1 {[%clk 0:00:11]}  Rc2 {[%clk 0:00:36]} 45. Rd2 {[%clk 0:00:11]}  Rc1+ {[%clk 0:00:12]} 46. Rd1 {[%clk 0:00:11]}  Rcc2 {[%clk 0:00:13]} 1/2-1/2


[Site "https://www.chess.com"]

[Event "Titled Tuesday Blitz July 4 Early 2023"]
[White "Rodriguez Santiago, Jaime"]
[Black "gueraumasague"]
[WhiteFideId "3100898"]
[WhiteElo "2307"]
[BlackElo "2547"]
[Result "1-0"]
[Round "3"]
[TimeControl "180+2"]
[Date "2023.07.04"]
[WhiteClock "0:00:05"]
[BlackClock "0:00:03"]
[Board "148"]

1. c4 {[%clk 0:03:00]}  g5 {[%clk 0:02:58]} 2. Nc3 {[%clk 0:02:59]}  Bg7 {[%clk 0:02:58]} 3. g3 {[%clk 0:02:59]}  d6 {[%clk 0:02:54]} 4. Bg2 {[%clk 0:02:59]}  Nc6 {[%clk 0:02:53]} 5. e4 {[%clk 0:02:58]}  h5 {[%clk 0:02:47]} 6. h3 {[%clk 0:02:53]}  g4 {[%clk 0:02:41]} 7. h4 {[%clk 0:02:47]}  Nd4 {[%clk 0:02:07]} 8. d3 {[%clk 0:02:36]}  c5 {[%clk 0:02:05]} 9. Nge2 {[%clk 0:02:28]}  Nf6 {[%clk 0:01:54]} 10. Nxd4 {[%clk 0:02:26]}  cxd4 {[%clk 0:01:55]} 11. Ne2 {[%clk 0:02:26]}  Nd7 {[%clk 0:01:55]} 12. O-O {[%clk 0:02:24]}  e6 {[%clk 0:01:46]} 13. Rb1 {[%clk 0:02:20]}  Rb8 {[%clk 0:01:35]} 14. a4 {[%clk 0:02:17]}  a5 {[%clk 0:01:31]} 15. b4 {[%clk 0:01:55]}  axb4 {[%clk 0:01:31]} 16. Rxb4 {[%clk 0:01:54]}  Nc5 {[%clk 0:01:28]} 17. Bb2 {[%clk 0:01:32]}  Qa5 {[%clk 0:01:21]} 18. Rb5 {[%clk 0:01:31]}  Qxa4 {[%clk 0:01:21]} 19. Bxd4 {[%clk 0:01:29]}  Qxd1 {[%clk 0:01:08]} 20. Rxd1 {[%clk 0:01:27]}  Bxd4 {[%clk 0:01:09]} 21. Nxd4 {[%clk 0:01:27]}  Bd7 {[%clk 0:01:08]} 22. Rb6 {[%clk 0:01:24]}  Ke7 {[%clk 0:01:08]} 23. Ne2 {[%clk 0:01:15]}  Na4 {[%clk 0:00:43]} 24. Rb4 {[%clk 0:01:01]}  e5 {[%clk 0:00:30]} 25. Rdb1 {[%clk 0:01:00]}  Nc5 {[%clk 0:00:20]} 26. d4 {[%clk 0:00:53]}  exd4 {[%clk 0:00:21]} 27. Nxd4 {[%clk 0:00:53]}  Ra8 {[%clk 0:00:19]} 28. Nf5+ {[%clk 0:00:34]}  Ke6 {[%clk 0:00:07]} 29. Rd1 {[%clk 0:00:31]}  Ra6 {[%clk 0:00:07]} 30. Rb2 {[%clk 0:00:24]}  Bc6 {[%clk 0:00:03]} 31. Rxd6+ {[%clk 0:00:20]}  Ke5 {[%clk 0:00:04]} 32. Rd1 {[%clk 0:00:11]}  Bxe4 {[%clk 0:00:04]} 33. Bxe4 {[%clk 0:00:10]}  Nxe4 {[%clk 0:00:05]} 34. Ne3 {[%clk 0:00:10]}  Rd6 {[%clk 0:00:03]} 35. Rb5+ {[%clk 0:00:09]}  Ke6 {[%clk 0:00:03]} 36. Rbd5 {[%clk 0:00:08]}  Rxd5 {[%clk 0:00:03]} 37. cxd5+ {[%clk 0:00:09]}  Kd6 {[%clk 0:00:03]} 38. Nf5+ {[%clk 0:00:09]}  Ke5 {[%clk 0:00:03]} 39. Ne3 {[%clk 0:00:09]}  Rd8 {[%clk 0:00:04]} 40. Nc4+ {[%clk 0:00:08]}  Kf6 {[%clk 0:00:05]} 41. d6 {[%clk 0:00:08]}  Ke6 {[%clk 0:00:03]} 42. Rd4 {[%clk 0:00:08]}  Nxd6 {[%clk 0:00:02]} 43. Ne3 {[%clk 0:00:08]}  b5 {[%clk 0:00:01]} 44. Rb4 {[%clk 0:00:08]}  Rc8 {[%clk 0:00:01]} 45. Kg2 {[%clk 0:00:07]}  Rc1 {[%clk 0:00:02]} 46. Nf1 {[%clk 0:00:06]}  Rc5 {[%clk 0:00:03]} 47. Nd2 {[%clk 0:00:06]}  Rd5 {[%clk 0:00:03]} 48. Nb3 {[%clk 0:00:06]}  Rd3 {[%clk 0:00:03]} 49. Nc5+ {[%clk 0:00:06]}  Kd5 {[%clk 0:00:04]} 50. Nd7 {[%clk 0:00:06]}  Rd4 {[%clk 0:00:03]} 51. Rb1 {[%clk 0:00:05]}  Kc6 {[%clk 0:00:02]} 52. Nf6 {[%clk 0:00:05]}  Rc4 {[%clk 0:00:02]} 53. Nxh5 {[%clk 0:00:06]}  b4 {[%clk 0:00:03]} 54. Nf4 {[%clk 0:00:06]}  Kb5 {[%clk 0:00:04]} 55. h5 {[%clk 0:00:06]}  Rc8 {[%clk 0:00:04]} 56. h6 {[%clk 0:00:07]}  Nf5 {[%clk 0:00:04]} 57. h7 {[%clk 0:00:07]}  Ka4 {[%clk 0:00:04]} 58. Nd5 {[%clk 0:00:04]}  b3 {[%clk 0:00:03]} 59. Nb6+ {[%clk 0:00:04]}  Ka3 {[%clk 0:00:03]} 60. Nxc8 {[%clk 0:00:05]}  Ka2 {[%clk 0:00:04]} 61. h8=Q {[%clk 0:00:06]}  Kxb1 {[%clk 0:00:03]} 62. Qc3 {[%clk 0:00:05]}  b2 {[%clk 0:00:04]} 63. Nb6 {[%clk 0:00:05]}  Ka1 {[%clk 0:00:03]} 64. Na4 {[%clk 0:00:05]} 1-0


[Site "https://www.chess.com"]

[Event "Titled Tuesday Blitz July 4 Early 2023"]
[White "Degenbaev, Aziz"]
[Black "Legenia, Artem"]
[WhiteFideId "13802640"]
[BlackFideId "14136945"]
[WhiteElo "2545"]
[BlackElo "2305"]
[Result "1-0"]
[Round "3"]
[TimeControl "180+2"]
[Date "2023.07.04"]
[WhiteClock "0:01:30"]
[BlackClock "0:01:47"]
[Board "149"]

1. d4 {[%clk 0:03:00]}  c5 {[%clk 0:02:59]} 2. d5 {[%clk 0:03:00]}  f5 {[%clk 0:02:59]} 3. Nc3 {[%clk 0:03:01]}  g6 {[%clk 0:02:58]} 4. e4 {[%clk 0:02:59]}  d6 {[%clk 0:02:57]} 5. Bb5+ {[%clk 0:02:59]}  Bd7 {[%clk 0:02:50]} 6. exf5 {[%clk 0:02:58]}  Nf6 {[%clk 0:02:44]} 7. fxg6 {[%clk 0:02:52]}  hxg6 {[%clk 0:02:44]} 8. Bd3 {[%clk 0:02:52]}  Kf7 {[%clk 0:02:42]} 9. Nf3 {[%clk 0:02:52]}  Na6 {[%clk 0:02:26]} 10. Bf4 {[%clk 0:02:48]}  Nb4 {[%clk 0:02:26]} 11. Ng5+ {[%clk 0:02:47]}  Kg7 {[%clk 0:02:26]} 12. Bc4 {[%clk 0:02:29]}  b5 {[%clk 0:02:26]} 13. Bxb5 {[%clk 0:02:21]}  Rh4 {[%clk 0:02:19]} 14. g3 {[%clk 0:02:18]}  Rxf4 {[%clk 0:02:18]} 15. gxf4 {[%clk 0:02:16]}  Bf5 {[%clk 0:02:19]} 16. Ne6+ {[%clk 0:02:06]}  Bxe6 {[%clk 0:02:19]} 17. dxe6 {[%clk 0:02:07]}  Qa5 {[%clk 0:02:13]} 18. Qd2 {[%clk 0:02:04]}  Rb8 {[%clk 0:02:12]} 19. Be2 {[%clk 0:02:00]}  Nc6 {[%clk 0:02:08]} 20. O-O {[%clk 0:01:55]}  Nd4 {[%clk 0:02:07]} 21. Kh1 {[%clk 0:01:52]}  Kh7 {[%clk 0:02:03]} 22. Qd3 {[%clk 0:01:47]}  Bh6 {[%clk 0:01:57]} 23. Rg1 {[%clk 0:01:45]}  Nf5 {[%clk 0:01:57]} 24. Rxg6 {[%clk 0:01:38]}  Kxg6 {[%clk 0:01:57]} 25. Rg1+ {[%clk 0:01:38]}  Kh7 {[%clk 0:01:56]} 26. Qxf5+ {[%clk 0:01:37]}  Kh8 {[%clk 0:01:57]} 27. Qg6 {[%clk 0:01:35]}  Bf8 {[%clk 0:01:57]} 28. Ne4 {[%clk 0:01:31]}  Nxe4 {[%clk 0:01:47]} 29. Qg8# {[%clk 0:01:30]} 1-0


[Site "https://www.chess.com"]

[Event "Titled Tuesday Blitz July 4 Early 2023"]
[White "Suarez Uriel, Adrian"]
[Black "Slovineanu, Viacheslav"]
[WhiteFideId "22230874"]
[BlackFideId "13900510"]
[WhiteElo "2540"]
[BlackElo "2283"]
[Result "0-1"]
[Round "3"]
[TimeControl "180+2"]
[Date "2023.07.04"]
[WhiteClock "0:01:29"]
[BlackClock "0:01:22"]
[Board "151"]

1. e4 {[%clk 0:03:00]}  c6 {[%clk 0:02:59]} 2. d4 {[%clk 0:02:54]}  d5 {[%clk 0:02:59]} 3. f3 {[%clk 0:02:55]}  dxe4 {[%clk 0:02:59]} 4. fxe4 {[%clk 0:02:56]}  e5 {[%clk 0:02:59]} 5. Nf3 {[%clk 0:02:56]}  Be6 {[%clk 0:02:59]} 6. Nc3 {[%clk 0:02:55]}  Nd7 {[%clk 0:02:54]} 7. Be3 {[%clk 0:02:53]}  Ngf6 {[%clk 0:02:49]} 8. d5 {[%clk 0:02:44]}  Bg4 {[%clk 0:02:48]} 9. Be2 {[%clk 0:02:41]}  Bb4 {[%clk 0:02:45]} 10. Qd3 {[%clk 0:02:27]}  cxd5 {[%clk 0:02:36]} 11. Bg5 {[%clk 0:02:04]}  dxe4 {[%clk 0:02:29]} 12. Bxf6 {[%clk 0:01:57]}  Bxc3+ {[%clk 0:01:43]} 13. Qxc3 {[%clk 0:01:55]}  Qxf6 {[%clk 0:01:41]} 14. Nd2 {[%clk 0:01:36]}  Bxe2 {[%clk 0:01:35]} 15. Kxe2 {[%clk 0:01:37]}  O-O {[%clk 0:01:31]} 16. Nxe4 {[%clk 0:01:36]}  Qg6 {[%clk 0:01:27]} 17. Ng3 {[%clk 0:01:31]}  Rac8 {[%clk 0:01:26]} 18. Qd3 {[%clk 0:01:30]}  Rxc2+ {[%clk 0:01:22]} 19. Ke3 {[%clk 0:01:29]} 0-1


[Site "https://www.chess.com"]

[Event "Titled Tuesday Blitz July 4 Early 2023"]
[White "rionelG"]
[Black "Ljukin, Sergei"]
[BlackFideId "14102200"]
[WhiteElo "2277"]
[BlackElo "2540"]
[Result "0-1"]
[Round "3"]
[TimeControl "180+2"]
[Date "2023.07.04"]
[WhiteClock "0:00:00"]
[BlackClock "0:00:01"]
[Board "152"]

1. e4 {[%clk 0:02:55]}  e6 {[%clk 0:02:50]} 2. d3 {[%clk 0:02:52]}  d5 {[%clk 0:02:49]} 3. Nd2 {[%clk 0:02:53]}  Nf6 {[%clk 0:02:49]} 4. g3 {[%clk 0:02:53]}  Be7 {[%clk 0:02:50]} 5. Bg2 {[%clk 0:02:54]}  O-O {[%clk 0:02:50]} 6. Ngf3 {[%clk 0:02:54]}  c5 {[%clk 0:02:50]} 7. O-O {[%clk 0:02:55]}  Nc6 {[%clk 0:02:50]} 8. Re1 {[%clk 0:02:55]}  Qc7 {[%clk 0:02:50]} 9. e5 {[%clk 0:02:50]}  Nd7 {[%clk 0:02:49]} 10. Qe2 {[%clk 0:02:50]}  b5 {[%clk 0:02:49]} 11. c3 {[%clk 0:02:50]}  b4 {[%clk 0:02:49]} 12. c4 {[%clk 0:02:49]}  a5 {[%clk 0:02:45]} 13. h4 {[%clk 0:02:47]}  dxc4 {[%clk 0:02:38]} 14. dxc4 {[%clk 0:02:41]}  a4 {[%clk 0:02:37]} 15. Nf1 {[%clk 0:02:34]}  Ba6 {[%clk 0:02:34]} 16. Bf4 {[%clk 0:02:32]}  Rad8 {[%clk 0:02:30]} 17. h5 {[%clk 0:02:20]}  Nd4 {[%clk 0:02:29]} 18. Nxd4 {[%clk 0:02:19]}  cxd4 {[%clk 0:02:29]} 19. Qg4 {[%clk 0:01:59]}  Kh8 {[%clk 0:02:14]} 20. Nd2 {[%clk 0:01:50]}  Nc5 {[%clk 0:02:03]} 21. h6 {[%clk 0:01:40]}  g6 {[%clk 0:02:03]} 22. Bg5 {[%clk 0:01:39]}  Rfe8 {[%clk 0:01:35]} 23. b3 {[%clk 0:01:10]}  Bxg5 {[%clk 0:01:33]} 24. Qxg5 {[%clk 0:01:06]}  Qe7 {[%clk 0:01:33]} 25. Qg4 {[%clk 0:00:59]}  f5 {[%clk 0:01:12]} 26. exf6 {[%clk 0:00:52]}  Qxf6 {[%clk 0:01:12]} 27. Ne4 {[%clk 0:00:52]}  Nxe4 {[%clk 0:01:11]} 28. Rxe4 {[%clk 0:00:43]}  d3 {[%clk 0:01:03]} 29. Rd1 {[%clk 0:00:42]}  Bb7 {[%clk 0:00:14]} 30. Qf4 {[%clk 0:00:22]}  Qxf4 {[%clk 0:00:10]} 31. Rxf4 {[%clk 0:00:21]}  Bxg2 {[%clk 0:00:10]} 32. Kxg2 {[%clk 0:00:22]}  e5 {[%clk 0:00:07]} 33. Re4 {[%clk 0:00:22]}  a3 {[%clk 0:00:07]} 34. Kf3 {[%clk 0:00:20]}  Kg8 {[%clk 0:00:06]} 35. Ke3 {[%clk 0:00:20]}  Kf7 {[%clk 0:00:04]} 36. c5 {[%clk 0:00:19]}  Rd5 {[%clk 0:00:04]} 37. Rxd3 {[%clk 0:00:18]}  Rxc5 {[%clk 0:00:03]} 38. Rxb4 {[%clk 0:00:19]}  Rc2 {[%clk 0:00:03]} 39. Rd2 {[%clk 0:00:19]}  Rec8 {[%clk 0:00:02]} 40. Rb7+ {[%clk 0:00:18]}  R8c7 {[%clk 0:00:03]} 41. Rxc7+ {[%clk 0:00:14]}  Rxc7 {[%clk 0:00:03]} 42. Rd5 {[%clk 0:00:13]}  Rc2 {[%clk 0:00:02]} 43. Rxe5 {[%clk 0:00:12]}  Rxa2 {[%clk 0:00:02]} 44. Ra5 {[%clk 0:00:13]}  Ra1 {[%clk 0:00:02]} 45. Kf4 {[%clk 0:00:12]}  a2 {[%clk 0:00:01]} 46. f3 {[%clk 0:00:00]}  Kf6 {[%clk 0:00:01]} 0-1


[Site "https://www.chess.com"]

[Event "Titled Tuesday Blitz July 4 Early 2023"]
[White "Xavier_mompel"]
[Black "David, Bogdan-Emanuel"]
[BlackFideId "1229907"]
[WhiteElo "2247"]
[BlackElo "2537"]
[Result "0-1"]
[Round "3"]
[TimeControl "180+2"]
[Date "2023.07.04"]
[WhiteClock "0:00:00"]
[BlackClock "0:00:16"]
[Board "155"]

1. e4 {[%clk 0:03:00]}  c5 {[%clk 0:02:59]} 2. Nf3 {[%clk 0:03:00]}  Nc6 {[%clk 0:02:59]} 3. d4 {[%clk 0:03:00]}  cxd4 {[%clk 0:02:59]} 4. Nxd4 {[%clk 0:03:01]}  e5 {[%clk 0:03:00]} 5. Nb5 {[%clk 0:03:00]}  d6 {[%clk 0:03:00]} 6. N1c3 {[%clk 0:03:00]}  a6 {[%clk 0:03:01]} 7. Na3 {[%clk 0:03:00]}  b5 {[%clk 0:03:02]} 8. Nd5 {[%clk 0:03:01]}  Nge7 {[%clk 0:03:02]} 9. Bg5 {[%clk 0:02:56]}  h6 {[%clk 0:03:02]} 10. Bh4 {[%clk 0:02:54]}  Qa5+ {[%clk 0:03:01]} 11. c3 {[%clk 0:02:53]}  Nxd5 {[%clk 0:03:01]} 12. Qxd5 {[%clk 0:02:53]}  Bb7 {[%clk 0:02:59]} 13. Nc2 {[%clk 0:02:47]}  Qc7 {[%clk 0:02:50]} 14. Qd3 {[%clk 0:02:42]}  Be7 {[%clk 0:02:49]} 15. Bxe7 {[%clk 0:02:41]}  Nxe7 {[%clk 0:02:49]} 16. O-O-O {[%clk 0:02:33]}  d5 {[%clk 0:02:43]} 17. exd5 {[%clk 0:02:28]}  Nxd5 {[%clk 0:02:42]} 18. Qg3 {[%clk 0:02:14]}  O-O {[%clk 0:02:33]} 19. f3 {[%clk 0:01:32]}  Rac8 {[%clk 0:02:24]} 20. Qf2 {[%clk 0:01:28]}  Qa5 {[%clk 0:01:31]} 21. Bd3 {[%clk 0:01:13]}  Qxa2 {[%clk 0:01:28]} 22. Be4 {[%clk 0:01:12]}  Rfd8 {[%clk 0:01:08]} 23. Rhe1 {[%clk 0:00:35]}  Nxc3 {[%clk 0:00:56]} 24. Rxd8+ {[%clk 0:00:34]}  Rxd8 {[%clk 0:00:56]} 25. bxc3 {[%clk 0:00:34]}  Bc8 {[%clk 0:00:52]} 26. Qb6 {[%clk 0:00:29]}  Re8 {[%clk 0:00:44]} 27. Rd1 {[%clk 0:00:23]}  Qe6 {[%clk 0:00:35]} 28. Qxe6 {[%clk 0:00:20]}  Bxe6 {[%clk 0:00:36]} 29. Nb4 {[%clk 0:00:14]}  a5 {[%clk 0:00:34]} 30. Nc6 {[%clk 0:00:14]}  a4 {[%clk 0:00:34]} 31. Rd8 {[%clk 0:00:11]}  Kf8 {[%clk 0:00:30]} 32. Rxe8+ {[%clk 0:00:11]}  Kxe8 {[%clk 0:00:31]} 33. Nxe5 {[%clk 0:00:11]}  f6 {[%clk 0:00:28]} 34. Bc6+ {[%clk 0:00:10]}  Ke7 {[%clk 0:00:28]} 35. Ng6+ {[%clk 0:00:08]}  Kf7 {[%clk 0:00:27]} 36. Nf4 {[%clk 0:00:08]}  Bc4 {[%clk 0:00:28]} 37. Kb2 {[%clk 0:00:07]}  Ke7 {[%clk 0:00:26]} 38. Ka3 {[%clk 0:00:07]}  Kd6 {[%clk 0:00:25]} 39. Be8 {[%clk 0:00:06]}  Kc5 {[%clk 0:00:22]} 40. Bg6 {[%clk 0:00:04]}  Bf1 {[%clk 0:00:21]} 41. Be4 {[%clk 0:00:04]}  g5 {[%clk 0:00:21]} 42. Ne6+ {[%clk 0:00:05]}  Kd6 {[%clk 0:00:20]} 43. Nd4 {[%clk 0:00:04]}  Kc5 {[%clk 0:00:19]} 44. Kb2 {[%clk 0:00:03]}  Kc4 {[%clk 0:00:15]} 45. Bc6 {[%clk 0:00:01]}  Kc5 {[%clk 0:00:15]} 46. Bxb5 {[%clk 0:00:01]}  Bxb5 {[%clk 0:00:15]} 47. Nxb5 {[%clk 0:00:00]}  Kxb5 {[%clk 0:00:16]} 0-1


[Site "https://www.chess.com"]

[Event "Titled Tuesday Blitz July 4 Early 2023"]
[White "Tsyhanchuk, Stanislav"]
[Black "Tikhonov, Viacheslav"]
[WhiteFideId "13505130"]
[BlackFideId "44196407"]
[WhiteElo "2222"]
[BlackElo "2537"]
[Result "0-1"]
[Round "3"]
[TimeControl "180+2"]
[Date "2023.07.04"]
[WhiteClock "0:00:08"]
[BlackClock "0:00:57"]
[Board "157"]

1. c4 {[%clk 0:03:00]}  e5 {[%clk 0:02:59]} 2. Nc3 {[%clk 0:03:00]}  Nf6 {[%clk 0:02:59]} 3. Nf3 {[%clk 0:03:01]}  e4 {[%clk 0:02:58]} 4. Ng5 {[%clk 0:03:00]}  c6 {[%clk 0:02:59]} 5. Ngxe4 {[%clk 0:02:58]}  Nxe4 {[%clk 0:03:00]} 6. Nxe4 {[%clk 0:02:59]}  d5 {[%clk 0:02:59]} 7. cxd5 {[%clk 0:02:59]}  cxd5 {[%clk 0:03:00]} 8. Nc3 {[%clk 0:02:59]}  d4 {[%clk 0:02:59]} 9. Ne4 {[%clk 0:02:57]}  Nc6 {[%clk 0:02:53]} 10. d3 {[%clk 0:02:45]}  f5 {[%clk 0:02:45]} 11. Nd2 {[%clk 0:02:40]}  Bd6 {[%clk 0:02:39]} 12. g3 {[%clk 0:02:39]}  O-O {[%clk 0:02:34]} 13. Bg2 {[%clk 0:02:38]}  Kh8 {[%clk 0:02:33]} 14. O-O {[%clk 0:02:38]}  Be6 {[%clk 0:02:20]} 15. Nf3 {[%clk 0:02:31]}  Be7 {[%clk 0:02:04]} 16. h4 {[%clk 0:02:25]}  h6 {[%clk 0:02:00]} 17. e3 {[%clk 0:02:09]}  dxe3 {[%clk 0:01:51]} 18. Bxe3 {[%clk 0:02:00]}  Qe8 {[%clk 0:01:45]} 19. d4 {[%clk 0:01:55]}  Rd8 {[%clk 0:01:44]} 20. Qc1 {[%clk 0:01:54]}  Qg6 {[%clk 0:01:42]} 21. Ne5 {[%clk 0:01:48]}  Nxe5 {[%clk 0:01:41]} 22. dxe5 {[%clk 0:01:49]}  Bd5 {[%clk 0:01:35]} 23. Bxd5 {[%clk 0:01:25]}  Rxd5 {[%clk 0:01:36]} 24. Qc4 {[%clk 0:01:14]}  Rxe5 {[%clk 0:01:32]} 25. Kh2 {[%clk 0:01:03]}  Re4 {[%clk 0:01:31]} 26. Qc7 {[%clk 0:01:00]}  Bxh4 {[%clk 0:01:27]} 27. Qxb7 {[%clk 0:00:56]}  Bxg3+ {[%clk 0:01:18]} 28. fxg3 {[%clk 0:00:56]}  Rxe3 {[%clk 0:01:19]} 29. Rf3 {[%clk 0:00:51]}  Qh5+ {[%clk 0:01:09]} 30. Kg2 {[%clk 0:00:50]}  Re2+ {[%clk 0:01:10]} 31. Rf2 {[%clk 0:00:49]}  Rxf2+ {[%clk 0:01:09]} 32. Kxf2 {[%clk 0:00:50]}  Qh2+ {[%clk 0:01:09]} 33. Qg2 {[%clk 0:00:48]}  Qxg2+ {[%clk 0:01:09]} 34. Kxg2 {[%clk 0:00:49]}  Rb8 {[%clk 0:01:09]} 35. b3 {[%clk 0:00:47]}  g5 {[%clk 0:01:09]} 36. Rf1 {[%clk 0:00:47]}  Rb5 {[%clk 0:01:09]} 37. Rc1 {[%clk 0:00:37]}  Rb7 {[%clk 0:01:07]} 38. Rc5 {[%clk 0:00:32]}  Rf7 {[%clk 0:01:07]} 39. b4 {[%clk 0:00:30]}  Kg7 {[%clk 0:01:07]} 40. a4 {[%clk 0:00:29]}  Kg6 {[%clk 0:01:04]} 41. a5 {[%clk 0:00:29]}  Rd7 {[%clk 0:01:01]} 42. Rc6+ {[%clk 0:00:28]}  Kh5 {[%clk 0:01:02]} 43. Rc4 {[%clk 0:00:19]}  Rd2+ {[%clk 0:01:01]} 44. Kf3 {[%clk 0:00:18]}  Rb2 {[%clk 0:01:01]} 45. a6 {[%clk 0:00:17]}  Rb1 {[%clk 0:00:58]} 46. Rc7 {[%clk 0:00:15]}  Rb3+ {[%clk 0:00:58]} 47. Kf2 {[%clk 0:00:14]}  Rxb4 {[%clk 0:00:58]} 48. Rxa7 {[%clk 0:00:15]}  Ra4 {[%clk 0:00:58]} 49. Ra8 {[%clk 0:00:15]}  Kg4 {[%clk 0:00:59]} 50. a7 {[%clk 0:00:13]}  Ra2+ {[%clk 0:00:59]} 51. Ke1 {[%clk 0:00:12]}  Kxg3 {[%clk 0:00:58]} 52. Kd1 {[%clk 0:00:11]}  f4 {[%clk 0:00:57]} 53. Ke1 {[%clk 0:00:08]}  f3 {[%clk 0:00:57]} 0-1


[Site "https://www.chess.com"]

[Event "Titled Tuesday Blitz July 4 Early 2023"]
[White "Richter, Paul"]
[Black "Kiseleva, Arina"]
[WhiteFideId "2046350"]
[BlackFideId "4164989"]
[WhiteElo "2535"]
[BlackElo "2206"]
[Result "1-0"]
[Round "3"]
[TimeControl "180+2"]
[Date "2023.07.04"]
[WhiteClock "0:00:16"]
[BlackClock "0:00:00"]
[Board "158"]

1. e4 {[%clk 0:03:00]}  c6 {[%clk 0:02:58]} 2. Nc3 {[%clk 0:03:00]}  d5 {[%clk 0:02:58]} 3. Nf3 {[%clk 0:03:00]}  dxe4 {[%clk 0:02:57]} 4. Nxe4 {[%clk 0:03:01]}  Nf6 {[%clk 0:02:57]} 5. Qe2 {[%clk 0:03:01]}  Nxe4 {[%clk 0:02:56]} 6. Qxe4 {[%clk 0:03:02]}  Qd5 {[%clk 0:02:56]} 7. Qh4 {[%clk 0:03:02]}  Qf5 {[%clk 0:02:55]} 8. c3 {[%clk 0:02:57]}  Qf6 {[%clk 0:02:52]} 9. Qg3 {[%clk 0:02:56]}  Nd7 {[%clk 0:02:44]} 10. d4 {[%clk 0:02:55]}  h6 {[%clk 0:02:42]} 11. Bc4 {[%clk 0:02:51]}  e6 {[%clk 0:02:42]} 12. Bf4 {[%clk 0:02:43]}  Nb6 {[%clk 0:02:25]} 13. Bd3 {[%clk 0:02:14]}  Bd7 {[%clk 0:01:40]} 14. Ne5 {[%clk 0:01:33]}  Nd5 {[%clk 0:01:27]} 15. Bd2 {[%clk 0:01:18]}  Bd6 {[%clk 0:01:26]} 16. f4 {[%clk 0:01:17]}  O-O-O {[%clk 0:01:13]} 17. O-O {[%clk 0:01:14]}  Qe7 {[%clk 0:01:08]} 18. a4 {[%clk 0:01:06]}  Rhg8 {[%clk 0:00:54]} 19. Qf2 {[%clk 0:00:59]}  Rdf8 {[%clk 0:00:51]} 20. c4 {[%clk 0:00:47]}  Nb4 {[%clk 0:00:40]} 21. Be4 {[%clk 0:00:44]}  Na6 {[%clk 0:00:36]} 22. c5 {[%clk 0:00:40]}  Bc7 {[%clk 0:00:30]} 23. b4 {[%clk 0:00:39]}  g5 {[%clk 0:00:27]} 24. b5 {[%clk 0:00:37]}  Nb8 {[%clk 0:00:27]} 25. Qf3 {[%clk 0:00:29]}  gxf4 {[%clk 0:00:22]} 26. Bxf4 {[%clk 0:00:26]}  f5 {[%clk 0:00:09]} 27. bxc6 {[%clk 0:00:23]}  fxe4 {[%clk 0:00:06]} 28. cxd7+ {[%clk 0:00:24]}  Nxd7 {[%clk 0:00:06]} 29. Qxe4 {[%clk 0:00:24]}  Nxe5 {[%clk 0:00:06]} 30. Bxe5 {[%clk 0:00:22]}  Bxe5 {[%clk 0:00:07]} 31. Qxe5 {[%clk 0:00:21]}  Rg6 {[%clk 0:00:01]} 32. Rxf8+ {[%clk 0:00:16]}  Qxf8 {[%clk 0:00:02]} 33. Rf1 {[%clk 0:00:16]}  Qg8 {[%clk 0:00:00]} 34. g3 {[%clk 0:00:16]} 1-0


[Site "https://www.chess.com"]